bitfinex-derivatives/quotes_ETHF0:USTF0_20250518
["timestamp","ask_amount","ask_price","bid_price","bid_amount"]
[1747568395430,35.68868,2504.9,2504.8,3.14007003]
[1747568396130,35.68868,2504.9,2504.8,3e-08]
[1747568396629,35.68868,2504.9,2504.8,0.09218006]
[1747568396832,35.70868,2504.9,2504.8,0.09218006]
[1747568397035,38.89301749,2504.9,2504.8,6e-08]
[1747568397234,38.89201749,2504.9,2504.8,3.05800006]
[1747568397530,38.89101749,2504.9,2504.8,3.05800006]
[1747568398020,18.16601749,2504.9,2504.8,3.05800006]
[1747568398226,33.90401749,2504.9,2504.8,3.05800006]
[1747568398828,7.66183749,2504.9,2504.8,3.85621006]
[1747568399030,6.39213749,2504.9,2504.8,3.85621006]
[1747568399627,2.14793749,2504.9,2504.8,8.85621006]
[1747568400037,3.2078,2505.2,2505.1,0.79812]
[1747568400235,0.79814,2505.1,2504.9,2.78217]
[1747568400529,11.2048,2505.2,2505.1,0.79812]
[1747568400730,18.9698,2505.2,2504.9,1.984]
[1747568400927,0.79815,2505.0,2504.9,1.984]
[1747568401123,0.79815,2505.0,2504.9,3.6809]
[1747568401429,3.2078,2505.2,2504.9,3.058]
[1747568401735,11.2578,2505.2,2505.1,0.79812]
[1747568401932,3.2078,2505.2,2505.1,0.79812]
[1747568402835,3.2078,2505.2,2505.1,1.44722]
[1747568403236,1.58173351,2505.5,2505.4,0.79802]
[1747568404133,1.58173351,2505.5,2505.4,3.85602]
[1747568404835,1.58173351,2505.5,2505.4,8.85602]
[1747568405734,7.765,2505.8,2505.7,0.79792]
[1747568406320,0.79792,2505.7,2505.6,3.058]
[1747568406521,2.10642,2505.7,2505.6,3.058]
[1747568406725,1.3085,2505.7,2505.6,3.85596]
[1747568406932,2.10642,2505.7,2505.6,3.058]
[1747568407237,1.3085,2505.7,2505.6,0.79796]
[1747568407430,2.10643,2505.7,2505.5,5.86977]
[1747568407630,3.2078,2505.6,2505.5,5.86977]
[1747568409530,8.126,2505.7,2505.6,0.79795]
[1747568410239,1.58173351,2505.8,2505.7,0.79792]
[1747568410439,9.70773351,2505.8,2505.7,2.16972]
[1747568410837,8.92389,2505.8,2505.7,2.16972]
[1747568411038,4.78953351,2505.9,2505.8,0.79789]
[1747568411338,4.78953351,2505.9,2505.8,2.12859]
[1747568412338,1.58173351,2505.9,2505.8,10.18659]
[1747568412840,2.37260027,2506.0,2505.9,0.79786]
[1747568413040,3.2078,2506.2,2506.1,0.7978]
[1747568413433,3.2078,2506.2,2506.1,5.7978]
[1747568413635,3.2078,2506.2,2506.1,7.8092]
[1747568414543,3.2078,2506.2,2506.1,2.8092]
[1747568415343,3.2078,2506.2,2506.1,2.0114]
[1747568415639,4.00556,2506.2,2506.1,0.6807]
[1747568416637,3.2078,2506.2,2506.1,2.7681]
[1747568416840,4.00556,2506.2,2506.1,1.9703]
[1747568417048,5.26966,2506.2,2506.1,1.9703]
[1747568417446,5.26966,2506.2,2506.1,2.7681]
[1747568417746,5.26966,2506.2,2506.1,1.9703]
[1747568418445,5.26966,2506.2,2506.1,2.7681]
[1747568418647,4.4719,2506.2,2506.1,2.7681]
[1747568418944,5.26966,2506.2,2506.1,2.7681]
[1747568419244,5.26966,2506.2,2506.1,1.9703]
[1747568420946,5.26966,2506.2,2506.1,2.06248003]
[1747568421748,3.2078,2506.2,2506.1,2.86028003]
[1747568422047,4.00556,2506.2,2506.1,2.06248003]
[1747568422740,4.00556,2506.2,2506.1,2.86028003]
[1747568423448,3.2078,2506.2,2506.1,2.86028003]
[1747568423748,4.00556,2506.2,2506.1,2.86028003]
[1747568423949,3.2078,2506.2,2506.1,2.86028003]
[1747568424351,4.00556,2506.2,2506.1,2.86028003]
[1747568424549,4.00556,2506.2,2506.1,2.06248003]
[1747568424850,3.2078,2506.2,2506.1,2.86028003]
[1747568426451,4.00556,2506.2,2506.1,2.86028003]
[1747568426647,3.2078,2506.2,2506.1,2.86028003]
[1747568427653,12.6051,2506.5,2506.4,0.7977]
[1747568428352,13.40277,2506.5,2506.4,0.7977]
[1747568428543,13.40277,2506.5,2506.3,2.15071]
[1747568428739,0.7977,2506.4,2506.3,1.353]
[1747568428944,2.072,2506.4,2506.3,1.353]
[1747568429145,2.072,2506.4,2506.2,1.46514]
[1747568429452,0.79776,2506.2,2505.8,0.0089291]
[1747568429654,4.5727,2506.1,2506.0,0.79783]
[1747568430353,4.5727,2506.1,2506.0,3.85583]
[1747568431758,5.3705,2506.1,2506.0,3.85583]
[1747568432658,4.5727,2506.1,2506.0,3.85583]
[1747568432953,5.3705,2506.1,2506.0,3.85583]
[1747568433156,4.5727,2506.1,2506.0,3.85583]
[1747568433455,5.3705,2506.1,2506.0,3.85583]
[1747568433646,4.5727,2506.1,2506.0,3.85583]
[1747568435241,4.5727,2506.1,2506.0,3.94801003]
[1747568435446,3.2078,2506.1,2506.0,3.94801003]
[1747568436655,1.2872,2506.2,2506.1,0.7978]
[1747568436857,4.495,2506.2,2506.1,0.7978]
[1747568437059,4.495,2506.2,2506.1,2.1688]
[1747568437358,2.3863852,2506.3,2506.2,0.79776]
[1747568437655,2.3863852,2506.3,2506.2,2.16876]
[1747568437857,2.3863852,2506.3,2506.2,7.16876]
[1747568438657,2.3863852,2506.3,2506.2,7.81686]
[1747568439658,0.79776,2506.2,2506.1,3.85579]
[1747568439858,5.34796,2506.2,2506.1,3.85579]
[1747568440253,5.99706,2506.2,2506.1,0.79779]
[1747568441055,5.1993,2506.2,2506.1,0.79779]
[1747568441255,5.99706,2506.2,2506.1,0.79779]
[1747568441759,5.1993,2506.2,2506.1,0.79779]
[1747568442859,5.1993,2506.2,2506.1,2.05429]
[1747568443456,7.5856852,2506.2,2506.1,2.05429]
[1747568444759,0.7978,2506.1,2506.0,3.94799003]
[1747568444957,1.3584,2506.1,2506.0,3.94799003]
[1747568447163,2.1562,2506.1,2506.0,3.94799003]
[1747568448265,1.3584,2506.1,2506.0,3.94799003]
[1747568450259,2.1562,2506.1,2506.0,3.94799003]
[1747568450465,1.3584,2506.1,2506.0,3.94799003]
[1747568450859,2.1562,2506.1,2506.0,3.94799003]
[1747568451067,1.3584,2506.1,2506.0,3.94799003]
[1747568451258,3.15266633,2506.1,2506.0,3.94799003]
[1747568451961,3.15266633,2506.1,2506.0,3.94801003]
[1747568452470,2.35486633,2506.1,2506.0,3.94801003]
[1747568452668,0.99646633,2506.1,2506.0,3.94801003]
[1747568453068,2.27326633,2506.1,2506.0,3.94801003]
[1747568454071,3.07106633,2506.1,2506.0,3.94801003]
[1747568454368,2.27326633,2506.1,2506.0,3.94801003]
[1747568455063,4.66303866,2506.1,2506.0,3.94801003]
[1747568455267,5.46083866,2506.1,2506.0,3.94801003]
[1747568455467,4.66303866,2506.1,2506.0,3.94801003]
[1747568455769,3.38623866,2506.1,2506.0,3.94801003]
[1747568457169,4.71753866,2506.1,2506.0,3.94801003]
[1747568458669,3.38623866,2506.1,2506.0,8.94801003]
[1747568459372,3.38623866,2506.1,2506.0,10.30411003]
[1747568461074,0.99646633,2506.1,2506.0,10.30411003]
[1747568462474,0.99646633,2506.1,2506.0,5.30411003]
[1747568462977,3.87417683,2506.2,2506.1,0.7978]
[1747568463489,0.66637683,2506.2,2506.1,0.7978]
[1747568465079,2.77124683,2506.2,2506.1,0.7978]
[1747568465676,2.77124683,2506.2,2506.1,0.88998003]
[1747568466379,2.77124683,2506.2,2506.1,0.09218003]
[1747568469992,10.74924683,2506.2,2506.1,0.09218003]
[1747568470376,11.41419418,2506.2,2506.1,0.09218003]
[1747568471886,0.79786,2505.9,2505.8,0.0089291]
[1747568472184,11.99066,2505.9,2505.8,0.0089291]
[1747568472886,13.29906,2505.9,2505.8,0.0089291]
[1747568473980,14.67566,2505.9,2505.8,0.0089291]
[1747568474175,0.79808,2505.2,2505.1,2.6931]
[1747568474386,4.00588,2505.2,2505.1,1.44702]
[1747568474887,3.2078,2505.2,2505.1,1.44702]
[1747568475488,4.4543,2505.2,2505.1,1.44702]
[1747568475687,4.4543,2505.2,2505.1,1.57176283]
[1747568477182,3.2078,2505.2,2505.1,2.86936283]
[1747568477383,1.2465,2505.4,2505.3,0.79805]
[1747568477691,3.63118238,2505.4,2505.3,0.92278358]
[1747568477890,4.42920238,2505.4,2505.3,0.92278358]
[1747568478189,4.42920238,2505.4,2505.3,3.98078358]
[1747568478389,3.63118238,2505.4,2505.3,3.98078358]
[1747568478587,4.42920238,2505.4,2505.3,3.18273358]
[1747568478990,4.42920238,2505.4,2505.3,3.98078358]
[1747568479292,4.42920238,2505.4,2505.3,3.18273358]
[1747568479894,4.42920238,2505.4,2505.3,3.27491361]
[1747568480293,9.42920238,2505.4,2505.3,0.21691361]
[1747568480488,0.7982,2504.9,2504.7,0.6673]
[1747568480685,4.5536,2504.8,2504.7,1.46554]
[1747568481989,4.5536,2504.8,2504.7,2.73634]
[1747568484099,1.3458,2504.8,2504.7,2.73634]
[1747568484401,4.5536,2504.8,2504.7,2.73634]
[1747568485002,0.79824,2504.7,2504.6,3.85625]
[1747568485303,1.3633,2504.7,2504.6,3.85625]
[1747568485493,1.9952,2504.7,2504.6,3.85625]
[1747568485986,1.9952,2504.7,2504.6,5.17665]
[1747568486193,2.79344,2504.7,2504.6,0.79825]
[1747568486701,1.9952,2504.7,2504.6,0.79825]
[1747568487198,3.2078,2504.8,2504.7,0.79824]
[1747568487790,4.00601,2504.8,2504.7,0.79824]
[1747568487991,0.79824,2504.7,2504.6,0.79826]
[1747568488191,0.79828,2504.6,2504.5,3.058]
[1747568488393,0.79828,2504.6,2504.5,3.85631]
[1747568488801,2.08068,2504.6,2504.5,3.85631]
[1747568488999,2.75028,2504.6,2504.5,3.85631]
[1747568491706,1.952,2504.6,2504.5,3.85631]
[1747568491898,1.2824,2504.6,2504.5,3.85631]
[1747568492505,1.2824,2504.6,2504.5,3.98107604]
[1747568492705,2.08068,2504.6,2504.5,3.98107947]
[1747568492905,2.08068,2504.6,2504.5,3.18276947]
[1747568493507,2.08068,2504.6,2504.5,3.058]
[1747568494305,7.08068,2504.6,2504.5,3.058]
[1747568494505,2.08068,2504.6,2504.5,3.058]
[1747568494707,2.08068,2504.6,2504.5,3.18278793]
[1747568494898,18.04768,2504.6,2504.5,3.18278793]
[1747568495098,18.04768,2504.6,2504.5,3.27496796]
[1747568495306,23.04768,2504.6,2504.5,3.15018003]
[1747568496002,6.2824,2504.6,2503.6,0.6536]
[1747568496208,3.2078,2503.9,2503.7,2.059804]
[1747568496507,3.2078,2503.9,2503.8,0.923334]
[1747568496701,3.2078,2503.9,2503.8,2.214934]
[1747568496905,2.17838,2504.3,2504.2,0.7984]
[1747568497206,2.17838,2504.3,2504.2,0.124804]
[1747568497507,2.17838,2504.3,2504.2,2.059804]
[1747568497702,2.17838,2504.3,2504.2,2.749604]
[1747568498305,2.17838,2504.3,2504.2,2.74958917]
[1747568498902,1.38,2504.3,2504.2,3.54798917]
[1747568499105,3.2078,2504.4,2504.3,0.79837]
[1747568499312,3.2078,2504.4,2504.3,2.23935917]
[1747568500201,4.00614,2504.4,2504.3,3.18278917]
[1747568500397,10.94964,2504.4,2504.3,1.77622816]
[1747568500601,5.94964,2504.4,2504.3,1.77622816]
[1747568500804,22.03464,2504.4,2504.3,1.77622816]
[1747568501212,22.03964,2504.4,2504.3,1.77622816]
[1747568501409,5.94964,2504.4,2504.3,1.77622816]
[1747568501605,21.39544,2504.4,2504.3,1.77622816]
[1747568504710,23.77518022,2504.4,2504.3,1.77622816]
[1747568505721,28.77518022,2504.4,2504.3,1.77622816]
[1747568506411,28.81118022,2504.4,2504.3,1.77622816]
[1747568507414,12.68618022,2504.4,2504.3,1.77622816]
[1747568507719,29.60102715,2504.4,2504.3,1.77622816]
[1747568508418,24.60102715,2504.4,2504.3,1.77622816]
[1747568509217,24.59402715,2504.4,2504.3,1.77622816]
[1747568510214,24.59402715,2504.4,2504.3,1.86840819]
[1747568510712,8.47702715,2504.4,2504.3,1.86840819]
[1747568510916,24.59102715,2504.4,2504.3,1.86840819]
[1747568511119,29.59102715,2504.4,2504.3,1.86840819]
[1747568512310,29.59102715,2504.4,2504.3,1.99321666]
[1747568514417,25.25475064,2504.4,2504.3,1.99321666]
[1747568514725,1.99594,2504.3,2502.9,4.78837881]
[1747568515016,1.99594,2504.3,2503.6,0.79858]
[1747568515017,0.79855,2503.8,2503.6,0.79858]
[1747568515212,8.90455,2503.8,2503.7,1.9286]
[1747568515419,20.11735,2503.8,2503.7,1.9286]
[1747568515919,3.2078,2503.8,2503.7,1.9286]
[1747568516116,12.01133,2503.8,2503.7,1.9286]
[1747568517722,13.37413,2503.8,2503.7,0.6352]
[1747568518615,13.37413,2503.8,2503.7,1.9058]
[1747568519020,12.01133,2503.8,2503.7,1.9058]
[1747568519714,4.00633,2503.8,2503.7,1.9058]
[1747568520421,3.2078,2503.8,2503.7,2.70436]
[1747568520720,10.38933197,2503.8,2503.7,2.70436]
[1747568520918,2.38433197,2503.8,2503.7,7.70436]
[1747568521519,2.38433197,2503.8,2503.7,2.70436]
[1747568523122,1.59188622,2503.8,2503.7,7.70436]
[1747568523323,2.38433197,2504.0,2503.9,0.7985]
[1747568523719,2.38433197,2504.0,2503.9,5.7985]
[1747568523920,2.38433197,2504.0,2503.9,7.8181]
[1747568524126,2.38433197,2504.0,2503.9,10.8761]
[1747568524429,0.66372349,2504.2,2504.1,0.79843]
[1747568524814,0.66372349,2504.2,2504.1,5.79843]
[1747568525127,3.17058715,2504.3,2504.2,0.7984]
[1747568525425,3.17058715,2504.3,2504.2,2.1684]
[1747568525625,3.17058715,2504.3,2504.2,15.2644]
[1747568525926,4.20525338,2504.4,2504.3,0.79837]
[1747568526122,4.20525338,2504.4,2504.3,2.16837]
[1747568526322,4.20525338,2504.4,2504.3,7.16837]
[1747568526726,4.20525338,2504.4,2504.3,7.29313218]
[1747568526938,1.33132418,2504.7,2504.3,6.49476218]
[1747568526939,2.12957418,2504.7,2504.3,6.49476218]
[1747568527226,1.33132418,2504.7,2504.6,0.79827]
[1747568527425,1.33132418,2504.7,2504.6,0.92303218]
[1747568528028,1.33132418,2504.7,2504.6,0.9230314]
[1747568528527,3.2078,2504.8,2504.7,0.79824]
[1747568528726,3.2078,2504.8,2504.7,2.1747014]
[1747568529920,3.2078,2504.8,2504.7,2.17469931]
[1747568531624,3.2078,2504.8,2504.7,2.04994]
[1747568531836,3.2078,2504.8,2504.7,2.1746984]
[1747568532327,4.00601,2504.8,2504.7,2.1746984]
[1747568533027,3.2078,2504.8,2504.7,2.1746984]
[1747568534234,4.00601,2504.8,2504.7,0.1247584]
[1747568534437,5.35061,2504.8,2504.7,0.1247584]
[1747568540237,5.35061,2504.8,2504.7,0.9229984]
[1747568540431,5.35061,2504.8,2504.7,0.1247584]
[1747568540632,5.35061,2504.8,2504.7,0.21693843]
[1747568541135,5.35061,2504.8,2504.7,0.21694765]
[1747568543128,5.35061,2504.8,2504.7,0.21695023]
[1747568543733,0.79824,2504.7,2504.6,3.058]
[1747568543938,10.09444,2504.7,2504.6,3.058]
[1747568544235,0.79827,2504.6,2504.5,3.058]
[1747568544534,10.80187,2504.6,2504.5,3.058]
[1747568545633,15.80187,2504.6,2504.5,3.058]
[1747568545836,18.18528987,2504.6,2504.5,3.058]
[1747568546931,5.73508987,2504.6,2504.5,3.058]
[1747568547133,13.81108987,2504.6,2504.5,3.058]
[1747568549645,21.85308987,2504.6,2504.5,3.058]
[1747568551241,5.73508987,2504.6,2504.5,3.058]
[1747568551441,21.84408987,2504.6,2504.5,3.058]
[1747568552943,19.46067,2504.6,2504.5,3.058]
[1747568554936,19.46067,2504.6,2504.5,3.15018003]
[1747568555545,3.35167,2504.6,2504.5,3.27496661]
[1747568556043,19.44167,2504.6,2504.5,3.27496661]
[1747568556344,19.44167,2504.6,2504.5,3.27496194]
[1747568558344,19.44167,2504.6,2504.5,3.27496559]
[1747568558746,19.42867,2504.6,2504.5,3.27496559]
[1747568559645,22.63647,2504.6,2504.5,3.27496559]
[1747568560248,22.63647,2504.6,2504.5,3.27496469]
[1747568562048,22.63647,2504.6,2504.5,3.27496298]
[1747568564042,22.63647,2504.6,2504.5,3.27496461]
[1747568567651,5.26027,2504.6,2504.5,3.27496461]
[1747568567851,21.21127,2504.6,2504.5,3.27495671]
[1747568568350,19.1578,2504.6,2504.5,5.32045671]
[1747568568753,11.99707,2504.6,2504.5,5.32045671]
[1747568568949,11.99707,2504.6,2504.5,4.52215671]
[1747568569753,11.99707,2504.6,2504.5,5.32045671]
[1747568570354,11.99707,2504.6,2504.5,4.52215671]
[1747568571652,11.99707,2504.6,2504.5,4.52215504]
[1747568573246,11.99707,2504.6,2504.5,5.32045504]
[1747568573447,11.99707,2504.6,2504.5,4.52215504]
[1747568573645,11.99707,2504.6,2504.5,4.52215482]
[1747568574442,13.28007,2504.6,2504.5,4.52215482]
[1747568575455,13.28007,2504.6,2504.5,4.52215779]
[1747568579257,13.27907,2504.6,2504.5,4.52215779]
[1747568580856,13.27907,2504.6,2504.5,5.32045779]
[1747568581056,5.28907,2504.6,2504.5,5.32045671]
[1747568581357,13.27907,2504.6,2504.5,5.32045671]
[1747568582548,11.99607,2504.6,2504.5,4.52215671]
[1747568582744,11.99607,2504.6,2504.5,5.32045671]
[1747568582952,11.99607,2504.6,2504.5,4.52215671]
[1747568583545,3.2078,2504.6,2504.5,5.32045671]
[1747568583752,3.2078,2504.6,2504.5,11.01015671]
[1747568585145,3.2078,2504.6,2504.5,12.09383111]
[1747568586263,3.2078,2504.6,2504.5,12.09381403]
[1747568586562,4.00607,2504.6,2504.5,4.35861403]
[1747568586867,6.69917,2504.6,2504.5,4.35861403]
[1747568588260,6.69917,2504.6,2504.5,4.35863979]
[1747568588460,6.69917,2504.6,2504.5,3.27496539]
[1747568589465,0.7985,2503.9,2503.8,2.55807072]
[1747568589665,11.99627,2504.0,2503.8,3.35659072]
[1747568590160,12.5748,2504.0,2503.8,6.41459072]
[1747568590362,12.5748,2504.0,2503.9,2.1671]
[1747568590660,3.2078,2504.0,2503.9,2.1671]
[1747568591166,3.2078,2504.0,2503.9,5.2251]
[1747568591974,8.5914,2504.2,2504.1,0.79843]
[1747568592174,9.3898,2504.2,2504.0,2.13885]
[1747568592465,3.2078,2504.1,2504.0,2.13885]
[1747568592663,11.11407956,2504.2,2504.0,1.3404]
[1747568592964,11.11407956,2504.2,2504.1,2.0145]
[1747568593354,12.38457956,2504.2,2504.1,2.0145]
[1747568594059,2.38765956,2504.2,2504.1,2.81293]
[1747568594259,2.38765956,2504.2,2504.1,3.49683]
[1747568595266,2.38765956,2504.2,2504.1,4.57854902]
[1747568595470,2.12971418,2504.3,2504.2,0.7984]
[1747568595766,2.12971418,2504.3,2504.2,2.0692]
[1747568598172,0.79839,2504.3,2504.2,2.0692]
[1747568598665,5.51521443,2504.4,2504.2,1.2708]
[1747568598873,5.00537443,2504.4,2504.3,2.10747]
[1747568600169,5.00537443,2504.4,2504.3,5.16547]
[1747568601373,5.00537443,2504.4,2504.3,4.49187639]
[1747568601571,6.26117443,2504.4,2504.3,4.49187639]
[1747568602382,6.26117443,2504.4,2504.3,3.18277639]
[1747568603082,5.46281443,2504.4,2504.3,3.98114639]
[1747568603372,3.2078,2504.4,2504.3,3.98114927]
[1747568603570,0.99921443,2504.5,2504.4,0.79834]
[1747568603773,0.99921443,2504.5,2504.4,2.23761927]
[1747568604070,0.99921443,2504.5,2504.4,7.23761927]
[1747568604371,0.99921443,2504.5,2504.4,5.29561927]
[1747568604575,0.99921443,2504.5,2504.4,10.29561927]
[1747568605074,0.99921443,2504.5,2504.4,11.25229614]
[1747568605274,0.99921443,2504.5,2504.4,11.3770563]
[1747568606472,0.99921443,2504.5,2504.4,6.3770563]
[1747568607274,3.2078,2504.7,2504.6,0.79827]
[1747568607576,3.2078,2504.7,2504.6,0.92303016]
[1747568607873,10.20926297,2506.2,2505.3,3.2078]
[1747568608078,10.20926297,2506.2,2504.6,53.22751285]
[1747568608079,9.37931297,2506.2,2506.1,4.0056]
[1747568608373,9.37931297,2506.2,2506.1,46.0118163]
[1747568608570,12.68207707,2506.2,2506.1,4.4140163]
[1747568608769,14.63047707,2506.2,2506.1,1.2062163]
[1747568608975,16.07483707,2506.2,2506.1,1.20614896]
[1747568609172,15.27707707,2506.2,2506.1,1.20614896]
[1747568609372,16.07483707,2506.2,2506.1,1.20614896]
[1747568610578,15.27707707,2506.2,2506.1,1.20614896]
[1747568610879,5.8977641,2506.2,2506.1,0.12470428]
[1747568612574,5.8977641,2506.2,2506.0,3.85583]
[1747568612781,5.8977641,2506.2,2506.1,0.92249315]
[1747568613079,5.8977641,2506.2,2506.1,0.12470315]
[1747568613279,5.8977641,2506.2,2506.0,3.85581]
[1747568615079,0.7978,2506.1,2506.0,3.058]
[1747568615278,0.79785,2506.0,2505.8,3.2078]
[1747568615575,2.14776,2505.9,2505.8,3.2078]
[1747568615779,2.14776,2505.9,2505.8,3.33251177]
[1747568615981,5.4505241,2505.9,2505.8,3.33251177]
[1747568616480,4.6526641,2505.9,2505.8,3.2078]
[1747568616879,4.6526641,2505.9,2505.8,4.00569]
[1747568617177,4.6526641,2505.9,2505.8,6.2658]
[1747568617478,5.4505241,2505.9,2505.8,6.2658]
[1747568617978,4.6526641,2505.9,2505.8,6.2658]
[1747568618179,4.6526641,2505.9,2505.8,3.2078]
[1747568618385,4.6526641,2505.9,2505.8,4.00569]
[1747568618976,4.6526641,2505.9,2505.8,3.2078]
[1747568619175,5.4505241,2505.9,2505.8,6.2658]
[1747568620386,4.6526641,2505.9,2505.8,7.06369]
[1747568620874,5.4505241,2505.9,2505.8,6.2658]
[1747568623174,7.8604641,2505.9,2505.3,0.79804]
[1747568623373,0.79799,2505.5,2505.4,0.12472759]
[1747568624087,0.79798,2505.6,2505.4,0.92275061]
[1747568624277,1.3242,2505.5,2505.4,3.85602]
[1747568624492,2.12219,2505.5,2505.4,3.98074861]
[1747568624783,1.3242,2505.5,2505.4,3.98074861]
[1747568624980,1.3242,2505.5,2505.4,3.85602]
[1747568625591,1.3242,2505.5,2505.4,3.98074618]
[1747568625981,1.3242,2505.5,2505.4,5.89024618]
[1747568626288,1.3242,2505.5,2505.4,5.89023988]
[1747568626586,1.3242,2505.5,2505.4,5.76552]
[1747568628089,1.3242,2505.5,2505.4,3.18272103]
[1747568628298,2.12219,2505.5,2505.4,3.98074103]
[1747568628893,2.12219,2505.5,2505.4,3.18272103]
[1747568629393,1.3242,2505.5,2505.4,3.98074103]
[1747568629990,1.3242,2505.5,2505.4,4.07292106]
[1747568631291,1.3242,2505.5,2505.4,4.07293036]
[1747568631493,1.3242,2505.5,2505.4,4.07293054]
[1747568632496,2.12219,2505.5,2505.4,3.27491054]
[1747568634293,1.3242,2505.5,2505.4,4.07293054]
[1747568634694,2.12219,2505.5,2505.4,4.07293054]
[1747568634891,2.12219,2505.5,2505.4,3.27491336]
[1747568635288,5.4249541,2505.5,2505.4,3.2749177]
[1747568636301,5.4249541,2505.5,2505.4,0.2169177]
[1747568638197,5.4249541,2505.5,2505.4,3.2749177]
[1747568638804,5.4249541,2505.5,2505.4,3.27491969]
[1747568640412,17.4742,2505.5,2505.4,4.07293969]
[1747568640702,8.105,2505.5,2505.4,4.07293424]
[1747568640900,3.2078,2505.7,2505.6,0.79795]
[1747568641104,3.2078,2505.7,2505.6,0.92268421]
[1747568641910,4.00573,2505.7,2505.6,0.12471955]
[1747568642104,3.2078,2505.7,2505.6,0.92266955]
[1747568642295,4.00572,2505.7,2505.6,0.12471955]
[1747568642495,5.26742,2505.7,2505.6,0.12471955]
[1747568643398,8.5701841,2505.7,2505.6,0.12471955]
[1747568643803,0.79795,2505.6,2505.5,3.058]
[1747568644005,6.6386141,2505.6,2505.5,3.18273328]
[1747568644202,6.6386141,2505.6,2505.5,0.12473328]
[1747568645705,0.79802,2505.4,2505.3,3.2078]
[1747568645899,0.79802,2505.4,2505.3,4.66583543]
[1747568646099,0.79802,2505.4,2505.3,7.72383543]
[1747568646299,0.79802,2505.4,2505.3,4.51603543]
[1747568646507,4.1007841,2505.4,2505.3,3.18273543]
[1747568648920,5.3794841,2505.4,2505.3,3.18273543]
[1747568649514,5.3794841,2505.4,2505.3,3.18274826]
[1747568650125,2.07672,2505.4,2505.3,3.18274826]
[1747568650324,8.5872841,2505.4,2505.3,3.18274826]
[1747568651222,0.79813,2505.1,2504.9,6.68277]
[1747568651525,0.79813,2505.1,2505.0,0.12475031]
[1747568651716,8.106,2505.2,2505.0,0.92290031]
[1747568651717,8.9041,2505.2,2505.0,0.92290031]
[1747568651923,13.4619641,2505.2,2505.1,0.12475031]
[1747568652121,14.1228641,2505.2,2505.1,0.12475031]
[1747568652622,14.7698641,2505.2,2505.1,0.12475031]
[1747568656920,14.7698641,2505.2,2505.1,0.12475387]
[1747568658924,4.5578641,2505.2,2505.1,0.92286155]
[1747568659124,8.029,2505.2,2505.1,0.92286155]
[1747568659628,2.12325189,2505.4,2505.2,0.79806]
[1747568659927,1.32522189,2505.4,2505.3,2.24520155]
[1747568660129,1.32522189,2505.4,2505.3,5.30318787]
[1747568660428,1.32522189,2505.4,2505.3,5.42792534]
[1747568660615,1.32522189,2505.4,2505.3,5.3031877]
[1747568660817,1.32522189,2505.4,2505.3,5.42792543]
[1747568661123,2.12324189,2505.4,2505.3,4.62987565]
[1747568661629,3.37414189,2505.4,2505.3,4.62988008]
[1747568662225,10.52290599,2505.4,2505.3,3.307481]
[1747568662425,10.52290599,2505.4,2505.3,3.30749051]
[1747568662426,9.1976841,2505.4,2505.3,3.30749051]
[1747568662729,9.1976841,2505.4,2505.3,3.30749277]
[1747568662929,9.1976841,2505.4,2505.3,3.30748609]
[1747568663232,9.1976841,2505.4,2505.3,0.24948609]
[1747568663723,9.1976841,2505.4,2505.3,0.1247377]
[1747568663930,9.1976841,2505.4,2505.3,0.24949294]
[1747568664133,9.1976841,2505.4,2505.3,0.24949276]
[1747568664321,5.89492,2505.4,2505.3,0.24949276]
[1747568664522,9.1976841,2505.4,2505.3,0.1247377]
[1747568665027,9.1976841,2505.4,2505.3,0.24949286]
[1747568665224,9.1976841,2505.4,2505.3,0.1247377]
[1747568665531,14.1976841,2505.4,2505.3,0.24949428]
[1747568665830,14.1976841,2505.4,2505.3,0.24949467]
[1747568666031,14.1976841,2505.4,2505.3,0.24949495]
[1747568666527,14.1976841,2505.4,2505.3,0.24949441]
[1747568666725,14.1976841,2505.4,2505.3,0.24949176]
[1747568667828,14.1976841,2505.4,2505.3,0.24949485]
[1747568668033,14.1976841,2505.4,2505.3,0.1247377]
[1747568668225,14.1976841,2505.4,2505.3,0.24949485]
[1747568668426,14.1976841,2505.4,2505.3,0.1247377]
[1747568669524,9.1976841,2505.4,2505.3,0.24949481]
[1747568671133,9.1976841,2505.4,2505.3,0.2495003]
[1747568671338,9.1976841,2505.4,2505.3,0.24950035]
[1747568672126,9.1976841,2505.4,2505.3,0.24950048]
[1747568672321,1.99524,2505.2,2504.7,2.0288]
[1747568672526,0.79817,2504.9,2504.8,0.12476295]
[1747568673032,2.74787,2504.9,2504.8,0.12476295]
[1747568673334,2.74787,2504.9,2504.8,3.058]
[1747568673735,6.0506341,2504.9,2504.8,3.058]
[1747568674535,6.0506341,2504.9,2504.8,3.15018003]
[1747568676439,7.38176549,2504.9,2504.8,3.15018003]
[1747568677241,7.38176549,2504.9,2504.8,0.09218003]
[1747568677643,0.7983,2504.5,2504.4,1.9368]
[1747568677845,8.8283,2504.5,2504.4,1.9368]
[1747568678234,10.1397,2504.5,2504.4,4.9948]
[1747568678435,10.1397,2504.5,2504.4,3.739]
[1747568678644,17.3345641,2504.5,2504.4,3.739]
[1747568679234,17.3345641,2504.5,2504.4,3.058]
[1747568680750,18.33168974,2504.5,2504.4,3.058]
[1747568683145,1.99587,2504.4,2503.9,0.6543]
[1747568683436,1.2602,2504.3,2503.9,1.9039]
[1747568683636,0.79846,2504.0,2503.9,1.9039]
[1747568683841,8.76346,2504.0,2503.9,1.9039]
[1747568684247,10.02366,2504.0,2503.9,4.9619]
[1747568684443,10.02366,2504.0,2503.9,5.08671573]
[1747568684752,13.3264241,2504.0,2503.9,5.08671573]
[1747568685047,13.3264241,2504.0,2503.9,5.08671651]
[1747568686549,13.3264241,2504.0,2503.9,3.7123]
[1747568687048,5.3614241,2504.0,2503.9,3.7123]
[1747568687245,20.0302241,2504.0,2503.9,3.7123]
[1747568687447,20.0302241,2504.0,2503.9,4.9849]
[1747568687849,12.0662241,2504.0,2503.9,4.9849]
[1747568688051,20.0272241,2504.0,2503.9,4.9849]
[1747568689247,16.72446,2504.0,2503.9,4.9849]
[1747568689652,16.72446,2504.0,2503.9,5.07708003]